bitfinex-derivatives/quotes_BNBF0:USTF0_20250329
["timestamp","ask_amount","ask_price","bid_price","bid_amount"]
[1743213916754,1.89177573,619.17,618.22,0.866]
[1743213916949,1.89177573,619.16,618.22,0.866]
[1743213917154,1.89177573,619.15,618.22,0.866]
[1743213917354,1.89177573,619.14,618.22,0.866]
[1743213917549,1.89177573,619.13,618.22,0.866]
[1743213917747,1.89177573,619.12,618.22,0.866]
[1743213917946,1.89177573,619.11,618.22,0.866]
[1743213918147,1.89177573,619.1,618.22,0.866]
[1743213918348,1.89177573,619.09,618.22,0.866]
[1743213918550,1.89177573,619.08,618.22,0.866]
[1743213918748,1.89177573,619.07,618.22,0.866]
[1743213918954,1.89177573,619.06,618.22,0.866]
[1743213919149,1.89177573,619.05,618.22,0.866]
[1743213919353,2.82691894,619.04,618.22,0.866]
[1743213919549,1.89177573,619.03,618.23,0.74]
[1743213919753,1.89177573,619.02,618.23,0.74]
[1743213919950,1.89177573,619.01,618.23,0.74]
[1743213920154,1.89177573,619.0,618.23,0.74]
[1743213920356,1.89177573,618.99,618.23,0.74]
[1743213920553,1.89177573,618.98,618.23,0.74]
[1743213920751,1.89177573,618.97,618.23,0.74]
[1743213920955,1.89177573,618.96,618.23,0.74]
[1743213921157,1.89177573,618.95,618.23,0.74]
[1743213921458,1.89177573,618.94,618.23,0.74]
[1743213921653,1.89177573,618.93,618.23,0.74]
[1743213921855,1.89177573,618.92,618.23,0.74]
[1743213922054,1.89177573,618.91,618.23,0.74]
[1743213922353,1.89177573,618.9,618.23,0.74]
[1743213922656,1.89177573,618.89,618.23,0.74]
[1743213922858,1.89177573,618.88,618.23,0.74]
[1743213923158,1.89177573,618.87,618.23,0.74]
[1743213923355,1.89177573,618.86,618.23,0.74]
[1743213923551,1.89177573,618.85,618.23,0.74]
[1743213923756,1.89177573,618.84,618.23,0.74]
[1743213923955,1.89177573,618.83,618.23,0.74]
[1743213924256,1.89177573,618.82,618.24,0.843]
[1743213924555,1.89177573,618.81,618.24,0.843]
[1743213924756,1.89177573,618.8,618.24,0.843]
[1743213924957,1.89177573,618.79,618.24,0.843]
[1743213925157,2.82691894,618.78,618.24,0.843]
[1743213925354,1.89177573,618.77,618.24,0.843]
[1743213925658,1.89177573,618.76,618.24,0.843]
[1743213925853,1.89177573,618.75,618.24,0.843]
[1743213926060,1.89177573,618.74,618.24,0.843]
[1743213926253,1.89177573,618.73,618.24,0.843]
[1743213926457,1.89177573,618.72,618.24,0.843]
[1743213926654,1.89442826,618.71,618.24,0.843]
[1743213926859,1.89442826,618.7,618.24,0.843]
[1743213927058,1.89442826,618.69,618.24,0.843]
[1743213927254,1.89442826,618.68,618.24,0.843]
[1743213927456,1.89442826,618.67,618.24,0.843]
[1743213927655,1.89442826,618.66,618.24,0.843]
[1743213927859,2.82957147,618.65,618.24,0.843]
[1743213928157,1.89442826,618.64,618.24,0.843]
[1743213928358,1.89442826,618.63,618.24,0.843]
[1743213928559,1.89442826,618.62,618.24,0.843]
[1743213928857,1.89442826,618.61,618.24,0.843]
[1743213929059,1.89442826,618.6,618.24,0.843]
[1743213929261,2.82957147,618.59,618.24,0.843]
[1743213929456,1.89442826,618.58,618.24,0.843]
[1743213929762,2.82957147,618.57,618.24,0.843]
[1743213929958,1.89442826,618.56,618.24,0.843]
[1743213930159,1.89442826,618.55,618.24,0.843]
[1743213930360,1.89458657,618.54,618.24,0.843]
[1743213930558,1.20994145,618.53,618.24,0.843]
[1743213930762,1.20994145,618.52,618.24,0.843]
[1743213930960,1.20994145,618.51,618.24,0.843]
[1743213931261,1.20994145,618.5,618.24,0.843]
[1743213931461,0.93514321,618.49,618.24,0.843]
[1743213932059,0.93514321,618.48,618.24,0.843]
[1743213932462,0.93514321,618.47,618.24,0.843]
[1743213932965,0.93514321,618.46,618.24,0.843]
[1743213933763,0.93514321,618.45,618.24,0.843]
[1743213934163,0.28142248,618.75,618.24,0.843]
[1743213934464,1.89518502,618.74,618.24,0.843]
[1743213934668,1.89518502,618.73,618.24,0.843]
[1743213934967,1.89518502,618.72,618.24,0.843]
[1743213935164,1.89518502,618.71,618.24,0.843]
[1743213935364,1.89518502,618.7,618.24,0.843]
[1743213935660,1.89518502,618.69,618.24,0.843]
[1743213935861,1.89518502,618.68,618.24,0.843]
[1743213936059,1.89518502,618.67,618.24,0.843]
[1743213936264,1.89518502,618.66,618.24,0.843]
[1743213936459,0.93677886,618.69,618.24,0.843]
[1743213936460,1.89517722,618.65,618.24,0.843]
[1743213936660,1.89517722,618.64,618.24,0.843]
[1743213936864,1.89517722,618.63,618.24,0.843]
[1743213937065,1.89517722,618.62,618.24,0.843]
[1743213937264,1.89517722,618.61,618.24,0.843]
[1743213937464,1.89517722,618.6,618.24,0.843]
[1743213937662,2.83195608,618.59,618.24,0.843]
[1743213937863,1.89517722,618.58,618.24,0.843]
[1743213938064,1.89517722,618.57,618.24,0.843]
[1743213938267,1.89517722,618.56,618.24,0.843]
[1743213938566,0.93677886,618.57,618.24,0.843]
[1743213938567,1.89517722,618.55,618.24,0.843]
[1743213938867,1.89517722,618.54,618.24,0.843]
[1743213939068,1.89517722,618.53,618.24,0.843]
[1743213939268,1.89517722,618.52,618.24,0.843]
[1743213939470,1.89525927,618.51,618.24,0.843]
[1743213939767,1.21042144,618.5,618.24,0.843]
[1743213939968,1.21042144,618.49,618.24,0.843]
[1743213940169,1.21042144,618.48,618.24,0.843]
[1743213940471,0.93677886,618.5,618.24,0.843]
[1743213940670,0.93677886,618.47,618.24,0.843]
[1743213941163,0.93677886,618.46,618.24,0.843]
[1743213941763,0.93677886,618.45,618.24,0.843]
[1743213942363,0.93677886,618.44,618.24,0.843]
[1743213942763,0.2814202,618.75,618.24,0.843]
[1743213942964,1.89546259,618.74,618.24,0.843]
[1743213943168,1.89546259,618.73,618.24,0.843]
[1743213943469,2.83241906,618.72,618.24,0.843]
[1743213943669,1.89546259,618.71,618.24,0.843]
[1743213943868,1.89546259,618.7,618.24,0.843]
[1743213944067,1.89546259,618.69,618.24,0.843]
[1743213944268,1.89546259,618.68,618.24,0.843]
[1743213944470,1.89546259,618.67,618.25,0.967]
[1743213944670,1.89546259,618.66,618.25,0.967]
[1743213944870,1.89546259,618.65,618.25,0.967]
[1743213945076,1.89546259,618.64,618.25,0.967]
[1743213945374,2.83241906,618.63,618.25,0.967]
[1743213945573,1.89546259,618.62,618.25,0.967]
[1743213945772,2.83241906,618.61,618.25,0.967]
[1743213945970,1.89546259,618.6,618.25,0.967]
[1743213946273,1.89546259,618.59,618.25,0.967]
[1743213946476,1.89546259,618.58,618.25,0.967]
[1743213946669,1.89546259,618.57,618.25,0.967]
[1743213946875,1.89546259,618.56,618.25,0.967]
[1743213947170,1.89546259,618.55,618.25,0.967]
[1743213947371,1.89546259,618.54,618.25,0.967]
[1743213947573,1.21059785,618.53,618.25,0.967]
[1743213947774,1.21059785,618.52,618.25,0.967]
[1743213947973,1.21059785,618.51,618.25,0.967]
[1743213948175,1.21059785,618.5,618.25,0.967]
[1743213948376,0.93695647,618.54,618.25,0.967]
[1743213948776,1.21063075,618.53,618.25,0.967]
[1743213948972,0.93695647,618.54,618.25,0.967]
[1743213949172,1.2106332,618.53,618.25,0.967]
[1743213949773,1.2106332,618.52,618.25,0.967]
[1743213950375,1.2106332,618.51,618.25,0.967]
[1743213950576,1.2106332,618.5,618.25,0.967]
[1743213950776,0.93695647,618.54,618.25,0.967]
[1743213951471,1.21059663,618.53,618.25,0.967]
[1743213951873,0.93695647,618.54,618.25,0.967]
[1743213952680,1.21070928,618.53,618.25,0.967]
[1743213952880,0.93695647,618.54,618.25,0.967]
[1743213953080,0.93695647,618.52,618.25,0.967]
[1743213953681,0.32293483,619.32,618.25,0.967]
[1743213953682,0.93695647,618.51,618.25,0.967]
[1743213954280,0.93695647,618.5,618.25,0.967]
[1743213955079,2.14754291,618.49,618.25,0.967]
[1743213955277,0.93695647,618.49,618.25,0.967]
[1743213955680,0.93695647,618.48,618.25,0.967]
[1743213956079,0.93695647,618.47,618.25,0.967]
[1743213956878,0.93695647,618.46,618.25,0.967]
[1743213957484,0.28142248,618.78,618.25,0.967]
[1743213957680,1.89554445,618.77,618.25,0.967]
[1743213957880,1.89554445,618.76,618.25,0.967]
[1743213958183,1.89554445,618.75,618.25,0.967]
[1743213958384,1.89554445,618.74,618.25,0.967]
[1743213958584,1.89554445,618.73,618.25,0.967]
[1743213958781,1.89554445,618.72,618.25,0.967]
[1743213958984,1.89554445,618.71,618.25,0.967]
[1743213959180,1.89554445,618.7,618.25,0.967]
[1743213959384,1.89554445,618.69,618.25,0.967]
[1743213959585,1.89554445,618.68,618.25,0.967]
[1743213959787,1.89554445,618.67,618.25,0.967]
[1743213959982,1.89554445,618.66,618.25,0.967]
[1743213960186,1.89554445,618.65,618.25,0.967]
[1743213960387,1.89554445,618.64,618.25,0.967]
[1743213960687,1.89554445,618.63,618.16,0.786]
[1743213960888,1.89554445,618.62,618.16,0.786]
[1743213961086,1.89554445,618.61,618.16,0.786]
[1743213961287,1.89554445,618.6,618.16,0.786]
[1743213961489,1.89554445,618.59,618.16,0.786]
[1743213961684,1.89554445,618.58,618.16,0.786]
[1743213961888,1.89554445,618.57,618.11,1.913]
[1743213962189,2.83253968,618.56,618.11,1.913]
[1743213962391,1.21065407,618.55,618.11,1.913]
[1743213962591,1.21065407,618.54,618.11,1.913]
[1743213962788,2.1476493,618.53,618.11,1.913]
[1743213962987,1.21065407,618.52,618.11,1.913]
[1743213963190,0.93699523,618.53,618.11,1.913]
[1743213963391,1.21068552,618.52,618.11,1.913]
[1743213963690,1.21068552,618.51,618.11,1.913]
[1743213963893,0.93699523,618.52,618.11,1.913]
[1743213964093,0.93699523,618.5,618.11,1.913]
[1743213964393,0.93699523,618.49,618.11,1.913]
[1743213964886,0.93699523,618.48,618.11,1.913]
[1743213965689,0.93699523,618.47,618.11,1.913]
[1743213966090,0.93699523,618.46,618.11,1.913]
[1743213966695,0.28143727,618.78,618.11,1.913]
[1743213966994,1.89596091,618.77,618.11,1.913]
[1743213967187,1.89596091,618.76,618.11,1.913]
[1743213967493,1.89596091,618.75,618.11,1.913]
[1743213967687,1.89596091,618.74,618.11,1.913]
[1743213967890,2.83315422,618.73,618.11,1.913]
[1743213968089,1.89596091,618.72,618.11,1.913]
[1743213968290,1.89596091,618.71,618.11,1.913]
[1743213968491,0.32293483,619.32,618.11,1.913]
[1743213968492,1.89596091,618.7,618.11,1.913]
[1743213968692,2.83315422,618.69,618.11,1.913]
[1743213968994,1.89596091,618.68,618.12,1.184]
[1743213969293,1.89596091,618.67,618.12,1.184]
[1743213969487,1.89596091,618.66,618.12,1.184]
[1743213969691,1.89596091,618.65,618.12,1.184]
[1743213969886,1.89596091,618.64,618.12,1.184]
[1743213970089,1.89596091,618.63,618.12,1.184]
[1743213970293,1.89596091,618.62,618.12,1.184]
[1743213970494,1.89596091,618.61,618.12,1.184]
[1743213970794,2.83315422,618.6,618.12,1.184]
[1743213970990,1.89596091,618.59,618.12,1.184]
[1743213971192,1.21092243,618.58,618.12,1.184]
[1743213971388,1.21092243,618.57,618.12,1.184]
[1743213971589,1.21092243,618.56,618.12,1.184]
[1743213971890,1.21092243,618.55,618.12,1.184]
[1743213972095,1.21092243,618.54,618.12,1.184]
[1743213972395,0.93719331,618.55,618.12,1.184]
[1743213972798,2.14829044,618.54,618.12,1.184]
[1743213972994,1.21106767,618.53,618.12,1.184]
[1743213973189,0.93719331,618.53,618.12,1.184]
[1743213973896,0.93719331,618.52,618.12,1.184]
[1743213974397,0.93719331,618.51,618.12,1.184]
[1743213974901,0.93719331,618.5,618.12,1.184]
[1743213975492,0.28143044,618.78,618.12,1.184]
[1743213975699,1.89620988,618.77,618.12,1.184]
[1743213976000,1.89620988,618.76,618.13,0.2912619]
[1743213976204,1.89620988,618.75,618.13,0.2912619]
[1743213976399,1.89620988,618.74,618.12,1.184]
[1743213976600,1.89620988,618.73,618.12,1.184]
[1743213976798,2.83350167,618.72,618.12,1.184]
[1743213976999,1.89620988,618.71,618.13,0.839]
[1743213977206,1.21108252,618.7,618.13,0.839]
[1743213977405,1.89619447,618.69,618.13,0.839]
[1743213977597,2.83348626,618.68,618.13,0.839]
[1743213977798,1.89619447,618.67,618.13,0.839]
[1743213978000,1.89619447,618.66,618.13,0.839]
[1743213978202,2.83348626,618.65,618.13,0.839]
[1743213978405,1.89619447,618.64,618.13,0.839]
[1743213978605,1.89619447,618.63,618.13,0.839]
[1743213978903,1.89619447,618.62,618.13,0.839]
[1743213979098,1.89619447,618.61,618.13,0.839]
[1743213979302,1.89619447,618.6,618.13,0.839]
[1743213979505,1.89619447,618.59,618.13,0.839]
[1743213979704,1.89619447,618.58,618.13,0.839]
[1743213979897,1.89619447,618.57,618.13,0.839]
[1743213980100,1.89619447,618.56,618.13,0.839]
[1743213980301,1.89619447,618.55,618.13,0.839]
[1743213980500,1.89619447,618.54,618.13,0.839]
[1743213980703,2.83348626,618.53,618.13,0.839]
[1743213980904,1.89619447,618.52,618.13,0.839]
[1743213981105,1.89617786,618.51,618.13,0.839]
[1743213981304,1.89617606,618.5,618.13,0.839]
[1743213981501,1.21108252,618.49,618.13,0.839]
[1743213981702,1.21108252,618.48,618.13,0.839]
[1743213981902,1.21108252,618.47,618.13,0.839]
[1743213982104,1.21108252,618.46,618.13,0.839]
[1743213982400,0.93729179,618.47,618.13,0.839]
[1743213982601,2.14820726,618.46,618.13,0.839]
[1743213982802,1.21088747,618.45,618.13,0.839]
[1743213983002,0.93729179,618.46,618.13,0.839]
[1743213983206,0.93729179,618.44,618.13,0.839]
[1743213983402,1.21086424,618.43,618.13,0.839]
[1743213983705,1.21086424,618.42,618.13,0.839]
[1743213983903,1.21086424,618.41,618.13,0.839]
[1743213984102,1.21086424,618.4,618.13,0.839]
[1743213984305,2.14815603,618.39,618.13,0.839]
[1743213984503,1.21086424,618.38,618.13,0.839]
[1743213984703,1.21086424,618.37,618.13,0.839]
[1743213985003,1.21086424,618.36,618.13,0.839]
[1743213985308,2.14815603,618.35,618.13,0.839]
[1743213985509,1.21086424,618.34,618.13,0.839]
[1743213985709,2.14815603,618.33,618.13,0.839]
[1743213985916,0.93729179,618.33,618.13,0.839]
[1743213986111,1.20932863,618.32,618.13,0.839]
[1743213986310,0.93729179,618.32,618.13,0.839]
[1743213987104,0.93729179,618.31,618.13,0.839]
[1743213987712,0.28149646,618.58,618.13,0.839]
[1743213987904,1.89221516,618.57,618.13,0.839]
[1743213988209,1.20848824,618.56,618.13,0.839]
[1743213988412,1.89220522,618.55,618.13,0.839]
[1743213988612,1.89220522,618.54,618.13,0.839]
[1743213988810,0.93540899,618.56,618.13,0.839]
[1743213988811,1.89220522,618.53,618.13,0.839]
[1743213989011,1.89220522,618.52,618.13,0.839]
[1743213989310,1.89220522,618.51,618.13,0.839]
[1743213989512,1.89220522,618.5,618.13,0.839]
[1743213989712,1.89220522,618.49,618.13,0.839]
[1743213989912,1.89220522,618.48,618.13,0.839]
[1743213990107,1.89220522,618.47,618.13,0.839]
[1743213990314,1.89134605,618.46,618.13,0.839]
[1743213990513,1.89134605,618.45,618.13,0.839]
[1743213990708,1.89134605,618.44,618.13,0.839]
[1743213990911,1.8908872,618.43,618.13,0.839]
[1743213991108,1.8908872,618.42,618.13,0.839]
[1743213991310,0.93540899,618.42,618.13,0.839]
[1743213991513,0.93540899,618.41,618.13,0.839]
[1743213991912,0.93540899,618.4,618.13,0.839]
[1743213992515,0.93540899,618.39,618.13,0.839]
[1743213993115,0.93540899,618.38,618.13,0.839]
[1743213993517,0.68290884,618.56,618.13,0.839]
[1743213993811,1.8899452,618.55,618.13,0.839]
[1743213994015,2.8242164,618.54,618.13,0.839]
[1743213994315,2.8242164,618.53,618.13,0.839]
[1743213994509,1.8899452,618.52,618.13,0.839]
[1743213994711,1.8899452,618.51,618.13,0.839]
[1743213995016,2.8242164,618.5,618.08,1.064]
[1743213995214,1.8899452,618.49,618.08,1.064]
[1743213995413,1.8899452,618.48,618.08,1.064]
[1743213995613,2.14130756,618.47,618.08,1.064]
[1743213995818,1.20703636,618.46,618.08,1.064]
[1743213996015,2.14130756,618.45,618.08,1.064]
[1743213996217,1.20703636,618.44,618.08,1.064]
[1743213996419,0.9342712,618.45,618.08,1.064]
[1743213996918,0.9342712,618.43,618.08,1.064]
[1743213997618,0.9342712,618.42,618.08,1.064]
[1743213998320,0.9342712,618.41,618.08,1.064]
[1743213998516,0.9342712,618.4,618.08,1.064]
[1743213999118,0.9342712,618.39,618.08,1.064]
[1743213999524,0.28149646,618.57,618.08,1.064]
[1743213999821,2.82199503,618.56,618.08,1.064]
[1743214000017,1.88845741,618.55,618.08,1.064]
[1743214000222,1.88845741,618.54,618.08,1.064]
[1743214000421,1.88845741,618.53,618.08,1.064]
[1743214000618,1.88845741,618.52,618.08,1.064]
[1743214000817,1.88845741,618.51,618.08,1.064]
[1743214001022,1.88845741,618.5,618.08,1.064]
[1743214001319,1.88845741,618.49,618.08,1.064]
[1743214001618,1.88845741,618.48,618.08,1.064]
[1743214001822,1.88845741,618.47,618.08,1.064]
[1743214002018,1.88845741,618.46,618.08,1.064]
[1743214002216,1.88845741,618.45,618.08,1.064]
[1743214002423,1.20608611,618.44,618.08,1.064]
[1743214002622,1.20608611,618.43,618.08,1.064]
[1743214002923,2.13962373,618.42,618.08,1.064]
[1743214003123,1.20608611,618.41,618.08,1.064]
[1743214003422,2.13962373,618.4,618.08,1.064]
[1743214003723,0.93353762,618.4,618.08,1.064]
[1743214004128,0.93353762,618.39,618.08,1.064]
[1743214004625,0.93353762,618.38,618.08,1.064]
[1743214004826,0.93353762,618.37,618.08,1.064]
[1743214005428,0.93353762,618.36,618.08,1.064]
[1743214005727,0.93353762,618.35,618.08,1.064]
[1743214006429,0.68198464,618.54,618.08,1.064]
[1743214006628,1.88731209,618.53,618.08,1.064]
[1743214006929,2.82026387,618.52,618.08,1.064]
[1743214007127,1.88731209,618.51,618.08,1.064]
[1743214007329,0.28149874,618.57,618.08,1.064]
[1743214007330,2.82026387,618.5,618.08,1.064]
[1743214007534,0.93295178,618.5,618.08,1.064]
[1743214007929,0.28145207,618.72,618.08,1.064]
[1743214008130,1.88760405,618.71,618.08,1.064]
[1743214008332,1.88760405,618.7,618.08,1.064]
[1743214008531,1.88760405,618.69,618.08,1.064]
[1743214008727,1.88760405,618.68,618.08,1.064]
[1743214008931,1.88760405,618.67,618.08,1.064]
[1743214009130,1.88760405,618.66,618.08,1.064]
[1743214009333,1.88760405,618.65,618.08,1.064]
[1743214009532,1.88760405,618.64,618.08,1.064]
[1743214009735,1.88760405,618.63,618.08,1.064]
[1743214010034,1.88760405,618.62,618.08,1.064]
[1743214010235,1.88760405,618.61,618.08,1.064]
[1743214010536,1.88760405,618.6,618.08,1.064]
[1743214010736,1.88760405,618.59,618.08,1.064]
[1743214010937,1.88760405,618.58,618.08,1.064]
[1743214011134,1.88760405,618.57,618.08,1.064]
[1743214011336,1.88760405,618.56,618.08,1.064]
[1743214011537,1.20555976,618.55,618.08,1.064]
[1743214011835,1.20555976,618.54,618.08,1.064]
[1743214012030,1.20555976,618.53,618.08,1.064]
[1743214012230,1.20555976,618.52,618.08,1.064]
[1743214012427,1.2058213,618.51,618.08,1.064]
[1743214012634,0.93313642,618.53,618.08,1.064]
[1743214012834,0.93313642,618.5,618.08,1.064]
[1743214015334,1.20595105,618.49,618.08,1.064]
[1743214015539,1.20601781,618.48,618.08,1.064]
[1743214015739,0.93313642,618.5,618.08,1.064]
[1743214016038,1.20609821,618.49,618.08,1.064]
[1743214016243,1.20609821,618.48,618.08,1.064]
[1743214016442,0.93313642,618.47,618.08,1.064]
[1743214017138,0.93313642,618.46,618.08,1.064]
[1743214017842,0.93313642,618.45,618.08,1.064]
[1743214018242,0.93313642,618.44,618.08,1.064]
[1743214018635,0.93313642,618.43,618.08,1.064]
[1743214018836,0.93313642,618.43,618.04,0.81]
[1743214019241,0.68261464,618.64,618.04,0.81]
[1743214019542,1.88933995,618.63,618.04,0.81]
[1743214019738,1.88933995,618.62,618.04,0.81]
[1743214019938,1.88933995,618.61,618.04,0.81]
[1743214020140,2.82334974,618.6,618.04,0.81]
[1743214020345,1.88933995,618.59,618.04,0.81]
[1743214020637,1.88947558,618.58,618.04,0.81]
[1743214020843,1.88947558,618.57,618.04,0.81]
[1743214021039,0.93400979,618.6,618.04,0.81]
[1743214021040,1.88947558,618.56,618.04,0.81]
[1743214021243,1.88947558,618.55,618.04,0.81]
[1743214021543,1.88947558,618.54,618.04,0.81]
[1743214021744,1.20675191,618.53,618.04,0.81]
[1743214021946,1.20675191,618.52,618.04,0.81]
[1743214022136,1.20675191,618.51,618.04,1.843]
[1743214022340,1.20675191,618.5,618.04,1.843]
[1743214022539,1.20675191,618.49,618.04,1.843]
[1743214022744,0.93400979,618.51,618.04,1.843]
[1743214023043,1.20692299,618.5,618.04,2.654]
[1743214023345,1.20692299,618.49,618.04,2.654]
[1743214023538,0.93400979,618.5,618.04,2.654]
[1743214023843,0.93400979,618.48,618.04,2.654]
[1743214024438,0.93400979,618.47,618.04,2.654]
[1743214024838,0.93400979,618.46,618.04,2.654]
[1743214025040,0.93400979,618.45,618.04,2.654]
[1743214025442,0.93400979,618.44,618.04,2.654]
[1743214025638,0.93400979,618.43,618.04,2.654]
[1743214026447,0.28147711,618.66,618.04,2.654]
[1743214026644,1.89032278,618.65,618.04,2.654]
[1743214026845,1.89032278,618.64,618.04,2.654]
[1743214027046,1.89032278,618.63,618.04,2.654]
[1743214027242,1.89032278,618.62,618.04,2.654]
[1743214027446,1.89032278,618.61,618.04,2.654]
[1743214027645,1.89032278,618.6,618.04,2.654]
[1743214027847,1.89032278,618.59,618.04,2.654]
[1743214028047,1.89032278,618.58,618.04,2.654]
[1743214028241,0.93444991,618.6,618.04,2.654]
[1743214028242,1.89032278,618.57,618.04,2.654]
[1743214028445,1.89032278,618.56,618.04,2.654]
[1743214028747,1.89032278,618.55,618.04,2.654]
[1743214028954,2.82477269,618.54,618.04,2.654]
[1743214029153,1.89032278,618.53,618.04,2.654]
[1743214029454,2.82477269,618.52,618.04,2.654]
[1743214029650,1.89032278,618.51,618.04,3.469]
[1743214029846,1.89032278,618.5,618.04,3.469]
[1743214030047,1.89032278,618.49,618.04,3.469]
[1743214030257,1.20729133,618.48,618.04,3.469]
[1743214030450,1.20729133,618.47,618.04,3.469]
[1743214030651,1.20729133,618.46,618.04,3.469]
[1743214030847,1.20729133,618.45,618.04,3.469]
[1743214031045,1.20729133,618.44,618.04,3.469]
[1743214031247,0.93444991,618.46,618.04,3.469]
[1743214031447,0.93444991,618.43,618.04,3.469]
[1743214032248,0.93444991,618.42,618.04,3.469]
[1743214033053,0.93444991,618.41,618.04,3.469]
[1743214033750,0.93444991,618.4,618.04,3.469]
[1743214034753,0.93444991,618.39,618.04,3.469]
[1743214035754,0.93444991,618.38,618.04,3.469]
[1743214036155,0.93444991,618.37,618.04,3.469]
[1743214036551,0.93444991,618.36,618.04,3.469]
[1743214037157,0.68397632,619.29,618.04,2.658]
[1743214037356,1.892929,619.28,618.04,2.658]
[1743214037558,1.892929,619.27,618.04,2.658]
[1743214037858,1.892929,619.26,618.04,2.658]
[1743214038055,2.21590033,619.25,618.04,2.658]
[1743214038250,1.892929,619.24,618.04,2.658]
[1743214038457,1.892929,619.23,618.04,2.658]
[1743214038657,1.892929,619.22,618.04,2.658]
[1743214038851,1.892929,619.21,618.04,2.658]
[1743214039052,2.82886557,619.2,618.04,2.658]
[1743214039259,1.892929,619.19,618.04,2.658]
[1743214039453,1.892929,619.18,618.04,2.658]
[1743214039659,1.892929,619.17,618.04,2.658]
[1743214039856,1.892929,619.16,618.05,0.29127503]
[1743214040063,1.892929,619.15,618.05,0.29127503]
[1743214040259,1.892929,619.14,618.05,0.29127503]
[1743214040459,1.892929,619.13,618.05,0.29127503]
[1743214040659,1.892929,619.12,618.05,0.29127503]
[1743214040962,2.82886557,619.11,618.05,1.05027503]
[1743214041162,1.892929,619.1,618.06,0.29127503]
[1743214041358,0.93593657,619.09,618.06,0.29127503]
[1743214041560,1.8938494,619.08,618.06,0.29127503]
[1743214041756,1.8938494,619.08,618.05,0.759]
[1743214041757,1.8938494,619.07,618.05,0.759]
[1743214041961,1.8938494,619.06,618.06,0.29124744]
[1743214042161,1.8938494,619.05,618.06,0.29124744]
[1743214042361,1.8938494,619.04,618.06,0.29124744]
[1743214042558,1.8938494,619.03,618.06,0.29124744]
[1743214042762,1.8938494,619.02,618.06,0.29124744]
[1743214042962,1.8938494,619.01,618.06,0.29124744]
[1743214043265,2.82978597,619.0,618.06,0.29124744]
[1743214043563,2.82930478,618.99,618.06,0.29124744]
[1743214043764,2.82930478,618.98,618.06,0.29124744]
[1743214043963,1.89337666,618.97,618.06,0.29124744]
[1743214044262,1.89337666,618.96,618.06,0.29124744]
[1743214044459,1.89337666,618.95,618.06,0.29124744]
[1743214044660,2.82930478,618.94,618.06,1.18024744]
[1743214044859,1.89337666,618.93,618.07,0.29124744]
[1743214045057,1.89337666,618.92,618.07,0.29124744]
[1743214045262,1.20872953,618.91,618.07,0.29124744]
[1743214045463,1.89251858,618.9,618.07,0.29124744]
[1743214045657,1.89251858,618.89,618.07,0.29124744]
[1743214045861,1.89251858,618.88,618.07,0.29124744]
[1743214046060,1.89251858,618.87,618.07,0.29124744]
[1743214046262,2.8284467,618.86,618.07,0.29124744]
[1743214046462,1.89251858,618.85,618.07,0.29124744]
[1743214046764,2.8284467,618.84,618.07,0.29124744]
[1743214046962,1.89251858,618.83,618.07,0.29124744]
[1743214047163,1.89251858,618.82,618.07,0.29124744]
[1743214047465,2.8284467,618.81,618.07,0.29124744]
[1743214047763,1.89251858,618.8,618.07,0.29124744]
[1743214047963,1.89251858,618.79,618.07,0.29124744]
[1743214048166,1.89251858,618.78,618.07,0.29124744]
[1743214048365,1.89251858,618.77,618.07,0.29124744]
[1743214048664,2.14465765,618.76,618.08,0.861]